[Event "Titled Tuesday Blitz July 4 Late 2023"]
[White "Czerw, Dawid"]
[Black "Silva Lucena, Cristian"]
[WhiteFideId "1145746"]
[BlackFideId "2232588"]
[WhiteElo "2556"]
[BlackElo "2407"]
[Result "1-0"]
[Round "7"]
[TimeControl "180+2"]
[Date "2023.07.04"]
[WhiteClock "0:00:05"]
[BlackClock "0:00:03"]
[Board "97"]

1. e4 {[%clk 0:03:00]}  e5 {[%clk 0:02:59]} 2. Nf3 {[%clk 0:02:59]}  Nc6 {[%clk 0:02:59]} 3. Bb5 {[%clk 0:02:58]}  a6 {[%clk 0:02:59]} 4. Ba4 {[%clk 0:02:58]}  Nf6 {[%clk 0:02:59]} 5. d4 {[%clk 0:02:59]}  exd4 {[%clk 0:02:55]} 6. O-O {[%clk 0:02:56]}  Be7 {[%clk 0:02:42]} 7. e5 {[%clk 0:02:54]}  Ne4 {[%clk 0:02:42]} 8. Nxd4 {[%clk 0:02:51]}  Nxd4 {[%clk 0:02:41]} 9. Qxd4 {[%clk 0:02:52]}  Nc5 {[%clk 0:02:41]} 10. Nc3 {[%clk 0:02:43]}  Nxa4 {[%clk 0:02:36]} 11. Qxa4 {[%clk 0:02:43]}  O-O {[%clk 0:02:37]} 12. Bf4 {[%clk 0:02:43]}  d5 {[%clk 0:02:35]} 13. exd6 {[%clk 0:02:43]}  Bxd6 {[%clk 0:02:35]} 14. Rad1 {[%clk 0:02:40]}  Bd7 {[%clk 0:02:35]} 15. Qd4 {[%clk 0:02:35]}  Bg4 {[%clk 0:01:59]} 16. f3 {[%clk 0:02:12]}  Bf5 {[%clk 0:01:59]} 17. Bxd6 {[%clk 0:02:04]}  Qxd6 {[%clk 0:01:58]} 18. Qxd6 {[%clk 0:02:04]}  cxd6 {[%clk 0:01:58]} 19. Rd2 {[%clk 0:01:59]}  Rfe8 {[%clk 0:01:54]} 20. Nd5 {[%clk 0:01:46]}  Rac8 {[%clk 0:01:50]} 21. Rc1 {[%clk 0:01:44]}  h6 {[%clk 0:01:43]} 22. c3 {[%clk 0:01:40]}  a5 {[%clk 0:01:31]} 23. Kf2 {[%clk 0:01:37]}  Rc6 {[%clk 0:01:28]} 24. Rcd1 {[%clk 0:01:28]}  Be6 {[%clk 0:01:24]} 25. a3 {[%clk 0:01:20]}  b6 {[%clk 0:01:19]} 26. Nf4 {[%clk 0:01:07]}  g5 {[%clk 0:01:07]} 27. Nh5 {[%clk 0:01:01]}  Rd8 {[%clk 0:01:07]} 28. Nf6+ {[%clk 0:00:53]}  Kg7 {[%clk 0:01:06]} 29. Ne4 {[%clk 0:00:54]}  d5 {[%clk 0:01:02]} 30. Ng3 {[%clk 0:00:53]}  Rdc8 {[%clk 0:00:54]} 31. Nf1 {[%clk 0:00:52]}  b5 {[%clk 0:00:47]} 32. Rd4 {[%clk 0:00:51]}  Rb8 {[%clk 0:00:39]} 33. Ne3 {[%clk 0:00:45]}  Rcb6 {[%clk 0:00:33]} 34. Nxd5 {[%clk 0:00:39]}  Bxd5 {[%clk 0:00:32]} 35. Rxd5 {[%clk 0:00:39]}  b4 {[%clk 0:00:32]} 36. cxb4 {[%clk 0:00:30]}  axb4 {[%clk 0:00:32]} 37. a4 {[%clk 0:00:30]}  b3 {[%clk 0:00:31]} 38. R1d3 {[%clk 0:00:24]}  Rc6 {[%clk 0:00:28]} 39. Rd2 {[%clk 0:00:18]}  Rc2 {[%clk 0:00:20]} 40. Ke3 {[%clk 0:00:17]}  Rb4 {[%clk 0:00:16]} 41. R5d3 {[%clk 0:00:14]}  Rc1 {[%clk 0:00:09]} 42. Rd4 {[%clk 0:00:12]}  Rb7 {[%clk 0:00:08]} 43. Kd3 {[%clk 0:00:10]}  h5 {[%clk 0:00:07]} 44. a5 {[%clk 0:00:09]}  Kg6 {[%clk 0:00:07]} 45. Rd6+ {[%clk 0:00:09]}  Kg7 {[%clk 0:00:06]} 46. a6 {[%clk 0:00:08]}  Ra7 {[%clk 0:00:07]} 47. Rb6 {[%clk 0:00:08]}  Ra1 {[%clk 0:00:06]} 48. Kc3 {[%clk 0:00:08]}  R1xa6 {[%clk 0:00:06]} 49. Rxa6 {[%clk 0:00:08]}  Rxa6 {[%clk 0:00:07]} 50. Kxb3 {[%clk 0:00:08]}  h4 {[%clk 0:00:08]} 51. Rd5 {[%clk 0:00:07]}  Kg6 {[%clk 0:00:08]} 52. Kc3 {[%clk 0:00:07]}  f6 {[%clk 0:00:08]} 53. b4 {[%clk 0:00:06]}  Rc6+ {[%clk 0:00:09]} 54. Kb3 {[%clk 0:00:06]}  Re6 {[%clk 0:00:08]} 55. Rd2 {[%clk 0:00:05]}  h3 {[%clk 0:00:08]} 56. gxh3 {[%clk 0:00:03]}  Re3+ {[%clk 0:00:08]} 57. Kc4 {[%clk 0:00:03]}  Rxf3 {[%clk 0:00:09]} 58. b5 {[%clk 0:00:04]}  Rxh3 {[%clk 0:00:09]} 59. b6 {[%clk 0:00:04]}  Rh7 {[%clk 0:00:09]} 60. Kc5 {[%clk 0:00:04]}  f5 {[%clk 0:00:08]} 61. Kc6 {[%clk 0:00:04]}  Rh8 {[%clk 0:00:07]} 62. b7 {[%clk 0:00:04]}  Rb8 {[%clk 0:00:06]} 63. Kc7 {[%clk 0:00:03]}  Rxb7+ {[%clk 0:00:06]} 64. Kxb7 {[%clk 0:00:04]}  f4 {[%clk 0:00:06]} 65. Kc6 {[%clk 0:00:05]}  Kf5 {[%clk 0:00:07]} 66. Kd5 {[%clk 0:00:05]}  f3 {[%clk 0:00:06]} 67. Rf2 {[%clk 0:00:01]}  Kf4 {[%clk 0:00:06]} 68. Kd4 {[%clk 0:00:02]}  g4 {[%clk 0:00:06]} 69. Rf1 {[%clk 0:00:02]}  g3 {[%clk 0:00:06]} 70. hxg3+ {[%clk 0:00:03]}  Kxg3 {[%clk 0:00:05]} 71. Ke3 {[%clk 0:00:04]}  f2 {[%clk 0:00:05]} 72. Rxf2 {[%clk 0:00:04]}  Kg4 {[%clk 0:00:03]} 73. Rf3 {[%clk 0:00:05]} 1-0


[Site "https://www.chess.com"]

[Event "Titled Tuesday Blitz July 4 Late 2023"]
[White "Melikhov, Evgeny V."]
[Black "Dinosaurio_1975"]
[WhiteFideId "4122046"]
[WhiteElo "2406"]
[BlackElo "2543"]
[Result "0-1"]
[Round "7"]
[TimeControl "180+2"]
[Date "2023.07.04"]
[WhiteClock "0:00:05"]
[BlackClock "0:00:12"]
[Board "98"]

1. d4 {[%clk 0:03:00]}  d5 {[%clk 0:02:59]} 2. c4 {[%clk 0:03:00]}  e6 {[%clk 0:02:58]} 3. Nc3 {[%clk 0:03:01]}  Nf6 {[%clk 0:02:58]} 4. cxd5 {[%clk 0:03:01]}  exd5 {[%clk 0:02:58]} 5. Bg5 {[%clk 0:03:01]}  c6 {[%clk 0:02:59]} 6. Qc2 {[%clk 0:03:00]}  h6 {[%clk 0:02:59]} 7. Bh4 {[%clk 0:03:00]}  Be7 {[%clk 0:02:59]} 8. e3 {[%clk 0:03:00]}  O-O {[%clk 0:02:59]} 9. Bd3 {[%clk 0:02:59]}  Re8 {[%clk 0:03:00]} 10. Nge2 {[%clk 0:02:54]}  Nbd7 {[%clk 0:02:58]} 11. O-O {[%clk 0:02:51]}  a5 {[%clk 0:02:59]} 12. Rae1 {[%clk 0:02:44]}  Nh5 {[%clk 0:02:53]} 13. Bg3 {[%clk 0:02:37]}  Nxg3 {[%clk 0:02:52]} 14. Nxg3 {[%clk 0:02:37]}  Nf6 {[%clk 0:02:49]} 15. f3 {[%clk 0:02:34]}  c5 {[%clk 0:02:49]} 16. b3 {[%clk 0:02:24]}  cxd4 {[%clk 0:02:38]} 17. exd4 {[%clk 0:02:23]}  Bb4 {[%clk 0:02:33]} 18. Rxe8+ {[%clk 0:02:18]}  Qxe8 {[%clk 0:02:33]} 19. Kf2 {[%clk 0:01:48]}  Be6 {[%clk 0:02:30]} 20. Na4 {[%clk 0:01:44]}  Rc8 {[%clk 0:02:26]} 21. Qe2 {[%clk 0:01:43]}  Qc6 {[%clk 0:02:14]} 22. Kg1 {[%clk 0:01:29]}  Bd7 {[%clk 0:01:43]} 23. Rd1 {[%clk 0:01:23]}  b5 {[%clk 0:01:42]} 24. Nc5 {[%clk 0:01:15]}  Bxc5 {[%clk 0:01:40]} 25. dxc5 {[%clk 0:01:15]}  Qxc5+ {[%clk 0:01:41]} 26. Kh1 {[%clk 0:01:15]}  Re8 {[%clk 0:01:40]} 27. Qd2 {[%clk 0:01:14]}  b4 {[%clk 0:01:28]} 28. h3 {[%clk 0:01:09]}  Qc3 {[%clk 0:01:22]} 29. Nf5 {[%clk 0:01:05]}  Qxd2 {[%clk 0:01:20]} 30. Rxd2 {[%clk 0:01:05]}  Re1+ {[%clk 0:01:19]} 31. Kh2 {[%clk 0:01:05]}  Bxf5 {[%clk 0:01:14]} 32. Bxf5 {[%clk 0:01:04]}  Rc1 {[%clk 0:01:13]} 33. Kg3 {[%clk 0:00:59]}  Kf8 {[%clk 0:01:14]} 34. Kf2 {[%clk 0:00:42]}  Ke7 {[%clk 0:01:09]} 35. h4 {[%clk 0:00:41]}  g6 {[%clk 0:01:06]} 36. Bh3 {[%clk 0:00:37]}  h5 {[%clk 0:01:06]} 37. g3 {[%clk 0:00:33]}  Kd6 {[%clk 0:01:05]} 38. Bf1 {[%clk 0:00:31]}  Kc5 {[%clk 0:01:04]} 39. Be2 {[%clk 0:00:29]}  Ne8 {[%clk 0:00:35]} 40. g4 {[%clk 0:00:29]}  Nd6 {[%clk 0:00:34]} 41. gxh5 {[%clk 0:00:28]}  gxh5 {[%clk 0:00:34]} 42. Kg3 {[%clk 0:00:21]}  Nf5+ {[%clk 0:00:33]} 43. Kf4 {[%clk 0:00:20]}  Nxh4 {[%clk 0:00:33]} 44. Kg5 {[%clk 0:00:20]}  Rh1 {[%clk 0:00:25]} 45. f4 {[%clk 0:00:19]}  Ng6 {[%clk 0:00:21]} 46. Bxh5 {[%clk 0:00:18]}  Nxf4 {[%clk 0:00:20]} 47. Bxf7 {[%clk 0:00:16]}  Rf1 {[%clk 0:00:15]} 48. Kg4 {[%clk 0:00:16]}  d4 {[%clk 0:00:16]} 49. Kg3 {[%clk 0:00:16]}  Ne2+ {[%clk 0:00:13]} 50. Rxe2 {[%clk 0:00:16]}  Rxf7 {[%clk 0:00:13]} 51. Re5+ {[%clk 0:00:16]}  Kd6 {[%clk 0:00:11]} 52. Rxa5 {[%clk 0:00:14]}  d3 {[%clk 0:00:11]} 53. Ra8 {[%clk 0:00:12]}  Kd5 {[%clk 0:00:12]} 54. Rd8+ {[%clk 0:00:12]}  Ke4 {[%clk 0:00:12]} 55. Rd6 {[%clk 0:00:10]}  Ke3 {[%clk 0:00:12]} 56. Rd5 {[%clk 0:00:09]}  d2 {[%clk 0:00:13]} 57. Rd6 {[%clk 0:00:09]}  Ke2 {[%clk 0:00:13]} 58. Rd4 {[%clk 0:00:05]}  d1=Q {[%clk 0:00:12]} 0-1


[Site "https://www.chess.com"]

[Event "Titled Tuesday Blitz July 4 Late 2023"]
[White "BenchGM"]
[Black "Sadovsky, Artem"]
[BlackFideId "4155840"]
[WhiteElo "2375"]
[BlackElo "2530"]
[Result "0-1"]
[Round "7"]
[TimeControl "180+2"]
[Date "2023.07.04"]
[WhiteClock "0:00:00"]
[BlackClock "0:01:05"]
[Board "100"]

1. e4 {[%clk 0:03:00]}  g6 {[%clk 0:02:56]} 2. d4 {[%clk 0:03:00]}  Bg7 {[%clk 0:02:57]} 3. Nc3 {[%clk 0:03:00]}  c6 {[%clk 0:02:57]} 4. Be3 {[%clk 0:02:43]}  d5 {[%clk 0:02:57]} 5. e5 {[%clk 0:02:43]}  h5 {[%clk 0:02:57]} 6. Bd3 {[%clk 0:02:28]}  Nh6 {[%clk 0:02:57]} 7. Nge2 {[%clk 0:02:03]}  Bf5 {[%clk 0:02:54]} 8. Bxh6 {[%clk 0:01:58]}  Rxh6 {[%clk 0:02:15]} 9. Bxf5 {[%clk 0:01:54]}  gxf5 {[%clk 0:02:16]} 10. Ng3 {[%clk 0:01:53]}  e6 {[%clk 0:02:17]} 11. Nxh5 {[%clk 0:01:47]}  Qg5 {[%clk 0:02:18]} 12. Nxg7+ {[%clk 0:01:47]}  Qxg7 {[%clk 0:02:19]} 13. Qf3 {[%clk 0:01:27]}  Nd7 {[%clk 0:02:19]} 14. O-O-O {[%clk 0:01:14]}  O-O-O {[%clk 0:02:09]} 15. g3 {[%clk 0:00:39]}  Rh3 {[%clk 0:02:03]} 16. Qg2 {[%clk 0:00:23]}  Rdh8 {[%clk 0:02:04]} 17. f4 {[%clk 0:00:19]}  Qh6 {[%clk 0:01:59]} 18. Rd2 {[%clk 0:00:18]}  Nf8 {[%clk 0:02:00]} 19. Rf2 {[%clk 0:00:14]}  Ng6 {[%clk 0:02:00]} 20. Ne2 {[%clk 0:00:13]}  Qh5 {[%clk 0:01:56]} 21. Ng1 {[%clk 0:00:13]}  Qg4 {[%clk 0:01:19]} 22. Nxh3 {[%clk 0:00:12]}  Rxh3 {[%clk 0:01:20]} 23. Qf3 {[%clk 0:00:11]}  Ne7 {[%clk 0:01:14]} 24. Qxg4 {[%clk 0:00:11]}  fxg4 {[%clk 0:01:15]} 25. c3 {[%clk 0:00:11]}  Nf5 {[%clk 0:01:16]} 26. Rg2 {[%clk 0:00:10]}  Ne3 {[%clk 0:01:14]} 27. Re2 {[%clk 0:00:10]}  Nf5 {[%clk 0:01:15]} 28. Rg1 {[%clk 0:00:10]}  Kc7 {[%clk 0:01:12]} 29. Kd2 {[%clk 0:00:11]}  b5 {[%clk 0:01:09]} 30. Kd3 {[%clk 0:00:10]}  Kb6 {[%clk 0:01:09]} 31. b3 {[%clk 0:00:10]}  a5 {[%clk 0:01:10]} 32. c4 {[%clk 0:00:11]}  Ne7 {[%clk 0:01:04]} 33. cxd5 {[%clk 0:00:10]}  Nxd5 {[%clk 0:01:05]} 34. a3 {[%clk 0:00:08]}  Nxf4+ {[%clk 0:01:05]} 35. Kd2 {[%clk 0:00:07]}  Nxe2 {[%clk 0:01:06]} 36. Kxe2 {[%clk 0:00:08]}  Rxh2+ {[%clk 0:01:07]} 37. Ke3 {[%clk 0:00:08]}  Rb2 {[%clk 0:01:07]} 38. b4 {[%clk 0:00:07]}  axb4 {[%clk 0:01:06]} 39. axb4 {[%clk 0:00:08]}  Rxb4 {[%clk 0:01:06]} 40. Ke4 {[%clk 0:00:07]}  c5 {[%clk 0:01:05]} 41. Rf1 {[%clk 0:00:04]}  Rxd4+ {[%clk 0:01:06]} 42. Ke3 {[%clk 0:00:05]}  Kc6 {[%clk 0:01:05]} 43. Rxf7 {[%clk 0:00:00]}  Kd5 {[%clk 0:01:05]} 0-1


[Site "https://www.chess.com"]

[Event "Titled Tuesday Blitz July 4 Late 2023"]
[White "Reprintsev, Alexander"]
[Black "Mendez Machado, Andre"]
[WhiteFideId "14100541"]
[BlackFideId "6603793"]
[WhiteElo "2484"]
[BlackElo "2258"]
[Result "1-0"]
[Round "7"]
[TimeControl "180+2"]
[Date "2023.07.04"]
[WhiteClock "0:01:11"]
[BlackClock "0:00:03"]
[Board "103"]

1. e4 {[%clk 0:03:00]}  e5 {[%clk 0:02:57]} 2. Nf3 {[%clk 0:02:58]}  Nc6 {[%clk 0:02:57]} 3. Bc4 {[%clk 0:02:57]}  Bc5 {[%clk 0:02:57]} 4. b4 {[%clk 0:02:56]}  Bxb4 {[%clk 0:02:57]} 5. c3 {[%clk 0:02:56]}  Be7 {[%clk 0:02:57]} 6. d4 {[%clk 0:02:55]}  Na5 {[%clk 0:02:58]} 7. Be2 {[%clk 0:02:55]}  d6 {[%clk 0:02:56]} 8. dxe5 {[%clk 0:02:47]}  dxe5 {[%clk 0:02:53]} 9. Qa4+ {[%clk 0:02:47]}  Nc6 {[%clk 0:02:53]} 10. Nxe5 {[%clk 0:02:46]}  Bd7 {[%clk 0:02:51]} 11. Nxd7 {[%clk 0:02:43]}  Qxd7 {[%clk 0:02:52]} 12. Bb5 {[%clk 0:02:39]}  Nf6 {[%clk 0:02:46]} 13. O-O {[%clk 0:02:36]}  Nxe4 {[%clk 0:02:42]} 14. Qxe4 {[%clk 0:02:35]}  O-O {[%clk 0:02:37]} 15. Bxc6 {[%clk 0:02:33]}  bxc6 {[%clk 0:02:36]} 16. Ba3 {[%clk 0:02:31]}  Rfe8 {[%clk 0:02:27]} 17. Bxe7 {[%clk 0:02:31]}  Rxe7 {[%clk 0:02:27]} 18. Qd4 {[%clk 0:02:30]}  Qf5 {[%clk 0:02:19]} 19. Nd2 {[%clk 0:02:24]}  h5 {[%clk 0:02:17]} 20. Nf3 {[%clk 0:02:24]}  Re4 {[%clk 0:02:11]} 21. Qd2 {[%clk 0:02:21]}  Rg4 {[%clk 0:02:07]} 22. Nd4 {[%clk 0:02:20]}  Qd5 {[%clk 0:02:03]} 23. f3 {[%clk 0:02:19]}  Rg6 {[%clk 0:01:56]} 24. Nb3 {[%clk 0:02:17]}  Qf5 {[%clk 0:01:20]} 25. Rae1 {[%clk 0:02:14]}  h4 {[%clk 0:01:18]} 26. Re2 {[%clk 0:02:08]}  c5 {[%clk 0:00:50]} 27. Qc2 {[%clk 0:02:05]}  Qh5 {[%clk 0:00:41]} 28. Qe4 {[%clk 0:02:02]}  Rd8 {[%clk 0:00:32]} 29. h3 {[%clk 0:02:01]}  Qg5 {[%clk 0:00:17]} 30. Qe7 {[%clk 0:01:56]}  Qxe7 {[%clk 0:00:08]} 31. Rxe7 {[%clk 0:01:56]}  c4 {[%clk 0:00:08]} 32. Nd4 {[%clk 0:01:55]}  c5 {[%clk 0:00:08]} 33. Ne2 {[%clk 0:01:50]}  Rd2 {[%clk 0:00:08]} 34. Nf4 {[%clk 0:01:49]}  Rf6 {[%clk 0:00:07]} 35. Re4 {[%clk 0:01:40]}  Rxa2 {[%clk 0:00:04]} 36. Rxc4 {[%clk 0:01:40]}  a5 {[%clk 0:00:02]} 37. Rf2 {[%clk 0:01:37]}  Ra1+ {[%clk 0:00:02]} 38. Kh2 {[%clk 0:01:38]}  a4 {[%clk 0:00:02]} 39. Nd5 {[%clk 0:01:36]}  Ra6 {[%clk 0:00:02]} 40. Re2 {[%clk 0:01:23]}  a3 {[%clk 0:00:03]} 41. Ne7+ {[%clk 0:01:22]}  Kh7 {[%clk 0:00:03]} 42. Rxh4+ {[%clk 0:01:22]}  Rh6 {[%clk 0:00:02]} 43. Rxh6+ {[%clk 0:01:21]}  gxh6 {[%clk 0:00:03]} 44. Nd5 {[%clk 0:01:18]}  Rc1 {[%clk 0:00:03]} 45. Ra2 {[%clk 0:01:16]}  Rd1 {[%clk 0:00:03]} 46. c4 {[%clk 0:01:15]}  Rd4 {[%clk 0:00:03]} 47. Rxa3 {[%clk 0:01:14]}  Rxc4 {[%clk 0:00:04]} 48. Nf6+ {[%clk 0:01:14]}  Kg7 {[%clk 0:00:03]} 49. Ne4 {[%clk 0:01:15]}  Rc2 {[%clk 0:00:04]} 50. Rc3 {[%clk 0:01:14]}  Rxc3 {[%clk 0:00:03]} 51. Nxc3 {[%clk 0:01:15]}  Kf6 {[%clk 0:00:04]} 52. f4 {[%clk 0:01:13]}  Kf5 {[%clk 0:00:04]} 53. Kg3 {[%clk 0:01:12]}  h5 {[%clk 0:00:03]} 54. Kf3 {[%clk 0:01:11]} 1-0


[Site "https://www.chess.com"]

[Event "Titled Tuesday Blitz July 4 Late 2023"]
[White "Karas, Marek"]
[Black "Sailer, Mike"]
[WhiteFideId "14928558"]
[BlackFideId "2012901"]
[WhiteElo "2449"]
[BlackElo "2147"]
[Result "1-0"]
[Round "7"]
[TimeControl "180+2"]
[Date "2023.07.04"]
[WhiteClock "0:01:14"]
[BlackClock "0:01:07"]
[Board "105"]

1. d4 {[%clk 0:02:49]}  d5 {[%clk 0:02:59]} 2. Nf3 {[%clk 0:02:49]}  Nf6 {[%clk 0:02:59]} 3. c4 {[%clk 0:02:48]}  c6 {[%clk 0:03:00]} 4. Nc3 {[%clk 0:02:47]}  a6 {[%clk 0:03:00]} 5. cxd5 {[%clk 0:02:43]}  cxd5 {[%clk 0:03:00]} 6. Bf4 {[%clk 0:02:42]}  Nc6 {[%clk 0:02:57]} 7. e3 {[%clk 0:02:41]}  Bg4 {[%clk 0:02:57]} 8. h3 {[%clk 0:02:38]}  Bxf3 {[%clk 0:02:53]} 9. Qxf3 {[%clk 0:02:39]}  e6 {[%clk 0:02:54]} 10. Bd3 {[%clk 0:02:38]}  Bd6 {[%clk 0:02:49]} 11. Bg5 {[%clk 0:02:31]}  Be7 {[%clk 0:02:48]} 12. O-O {[%clk 0:02:27]}  h6 {[%clk 0:02:46]} 13. Bh4 {[%clk 0:02:19]}  O-O {[%clk 0:02:45]} 14. Rac1 {[%clk 0:02:16]}  Rc8 {[%clk 0:02:45]} 15. Bb1 {[%clk 0:02:15]}  Na5 {[%clk 0:02:07]} 16. Qe2 {[%clk 0:02:08]}  Nc4 {[%clk 0:01:56]} 17. Rfd1 {[%clk 0:01:45]}  b5 {[%clk 0:01:47]} 18. Qd3 {[%clk 0:01:35]}  g6 {[%clk 0:01:39]} 19. Qe2 {[%clk 0:01:32]}  b4 {[%clk 0:01:26]} 20. Na4 {[%clk 0:01:26]}  Ne4 {[%clk 0:01:23]} 21. Bxe7 {[%clk 0:01:21]}  Qxe7 {[%clk 0:01:23]} 22. Bxe4 {[%clk 0:01:15]}  dxe4 {[%clk 0:01:07]} 23. Rxc4 {[%clk 0:01:14]} 1-0


[Site "https://www.chess.com"]

[Event "Titled Tuesday Blitz July 4 Late 2023"]
[White "Santos, Rafael Ventura Dos"]
[Black "benny_aizenberg"]
[WhiteFideId "2122227"]
[WhiteElo "2277"]
[BlackElo "2646"]
[Result "0-1"]
[Round "7"]
[TimeControl "180+2"]
[Date "2023.07.04"]
[WhiteClock "0:00:19"]
[BlackClock "0:00:22"]
[Board "106"]

1. d4 {[%clk 0:02:55]}  g5 {[%clk 0:03:00]} 2. Bxg5 {[%clk 0:02:54]}  Bg7 {[%clk 0:03:00]} 3. e3 {[%clk 0:02:51]}  c5 {[%clk 0:03:00]} 4. Nf3 {[%clk 0:02:51]}  Qb6 {[%clk 0:02:52]} 5. Nc3 {[%clk 0:02:26]}  e6 {[%clk 0:02:49]} 6. Qd2 {[%clk 0:02:17]}  cxd4 {[%clk 0:02:46]} 7. exd4 {[%clk 0:02:17]}  Nc6 {[%clk 0:02:45]} 8. O-O-O {[%clk 0:02:15]}  Nge7 {[%clk 0:02:43]} 9. Kb1 {[%clk 0:02:08]}  d6 {[%clk 0:02:25]} 10. Ne4 {[%clk 0:02:03]}  Nf5 {[%clk 0:02:15]} 11. c3 {[%clk 0:01:56]}  d5 {[%clk 0:02:08]} 12. Nf6+ {[%clk 0:01:54]}  Bxf6 {[%clk 0:02:01]} 13. Bxf6 {[%clk 0:01:54]}  Rg8 {[%clk 0:01:56]} 14. Ne5 {[%clk 0:01:53]}  Bd7 {[%clk 0:01:53]} 15. Rg1 {[%clk 0:01:49]}  Nd6 {[%clk 0:01:48]} 16. Bd3 {[%clk 0:01:43]}  Nxe5 {[%clk 0:01:40]} 17. dxe5 {[%clk 0:01:39]}  Nb5 {[%clk 0:01:14]} 18. Bxh7 {[%clk 0:01:36]}  Rg4 {[%clk 0:01:13]} 19. f4 {[%clk 0:01:31]}  Rc8 {[%clk 0:01:10]} 20. Ka1 {[%clk 0:01:30]}  Rc4 {[%clk 0:01:05]} 21. g3 {[%clk 0:01:28]}  Rcxf4 {[%clk 0:00:45]} 22. gxf4 {[%clk 0:01:28]}  Rxg1 {[%clk 0:00:43]} 23. Rxg1 {[%clk 0:01:18]}  Qxg1+ {[%clk 0:00:44]} 24. Bb1 {[%clk 0:01:18]}  Bc6 {[%clk 0:00:39]} 25. f5 {[%clk 0:01:14]}  d4 {[%clk 0:00:37]} 26. Qh6 {[%clk 0:01:10]}  Be4 {[%clk 0:00:27]} 27. Qh8+ {[%clk 0:01:10]}  Kd7 {[%clk 0:00:27]} 28. Qd8+ {[%clk 0:01:10]}  Kc6 {[%clk 0:00:27]} 29. Qe8+ {[%clk 0:00:25]}  Kb6 {[%clk 0:00:25]} 30. Qd7 {[%clk 0:00:19]}  Qxb1# {[%clk 0:00:22]} 0-1


[Site "https://www.chess.com"]

[Event "Titled Tuesday Blitz July 4 Late 2023"]
[White "Hajiyev, Kanan"]
[Black "Cardozo Munar, Carlos Eduardo"]
[WhiteFideId "13404148"]
[BlackFideId "4409477"]
[WhiteElo "2505"]
[BlackElo "2341"]
[Result "1-0"]
[Round "7"]
[TimeControl "180+2"]
[Date "2023.07.04"]
[WhiteClock "0:01:47"]
[BlackClock "0:01:03"]
[Board "109"]

1. d4 {[%clk 0:02:52]}  d5 {[%clk 0:02:57]} 2. Nf3 {[%clk 0:02:53]}  c6 {[%clk 0:02:53]} 3. c4 {[%clk 0:02:53]}  Nf6 {[%clk 0:02:53]} 4. cxd5 {[%clk 0:02:54]}  cxd5 {[%clk 0:02:52]} 5. Nc3 {[%clk 0:02:55]}  Bf5 {[%clk 0:02:52]} 6. Bg5 {[%clk 0:02:56]}  e6 {[%clk 0:02:52]} 7. Qb3 {[%clk 0:02:55]}  Nbd7 {[%clk 0:02:44]} 8. Ne5 {[%clk 0:02:53]}  Qb6 {[%clk 0:02:35]} 9. e3 {[%clk 0:02:48]}  Qxb3 {[%clk 0:02:32]} 10. axb3 {[%clk 0:02:48]}  a6 {[%clk 0:02:32]} 11. Bb5 {[%clk 0:02:40]}  Rc8 {[%clk 0:02:03]} 12. Nxd7 {[%clk 0:02:24]}  Nxd7 {[%clk 0:01:53]} 13. Be2 {[%clk 0:02:23]}  Bb4 {[%clk 0:01:52]} 14. Kd2 {[%clk 0:02:23]}  f6 {[%clk 0:01:51]} 15. Bh4 {[%clk 0:02:21]}  Ke7 {[%clk 0:01:51]} 16. Rhc1 {[%clk 0:02:18]}  Rc6 {[%clk 0:01:51]} 17. Bd3 {[%clk 0:02:14]}  Bxd3 {[%clk 0:01:46]} 18. Kxd3 {[%clk 0:02:15]}  Rhc8 {[%clk 0:01:46]} 19. Ne2 {[%clk 0:02:15]}  Rxc1 {[%clk 0:01:44]} 20. Rxc1 {[%clk 0:02:16]}  Rxc1 {[%clk 0:01:44]} 21. Nxc1 {[%clk 0:02:17]}  h5 {[%clk 0:01:45]} 22. Bg3 {[%clk 0:02:13]}  Bd6 {[%clk 0:01:45]} 23. Ne2 {[%clk 0:02:09]}  g5 {[%clk 0:01:44]} 24. h4 {[%clk 0:02:09]}  Nb8 {[%clk 0:01:31]} 25. f4 {[%clk 0:02:02]}  g4 {[%clk 0:01:24]} 26. f5 {[%clk 0:02:00]}  Nc6 {[%clk 0:01:22]} 27. fxe6 {[%clk 0:01:56]}  Kxe6 {[%clk 0:01:21]} 28. Bxd6 {[%clk 0:01:56]}  Kxd6 {[%clk 0:01:20]} 29. Nf4 {[%clk 0:01:56]}  Nb4+ {[%clk 0:01:19]} 30. Kd2 {[%clk 0:01:54]}  Nc6 {[%clk 0:01:11]} 31. Nxh5 {[%clk 0:01:53]}  Ne7 {[%clk 0:01:11]} 32. Nxf6 {[%clk 0:01:53]}  Ke6 {[%clk 0:01:11]} 33. Nxg4 {[%clk 0:01:53]}  Kf5 {[%clk 0:01:11]} 34. Ne5 {[%clk 0:01:50]}  Ke4 {[%clk 0:01:10]} 35. h5 {[%clk 0:01:50]}  Nf5 {[%clk 0:01:10]} 36. g4 {[%clk 0:01:47]}  Nxe3 {[%clk 0:01:10]} 37. h6 {[%clk 0:01:47]}  Kxd4 {[%clk 0:01:10]} 38. h7 {[%clk 0:01:48]}  Kxe5 {[%clk 0:01:11]} 39. h8=Q+ {[%clk 0:01:48]}  Ke4 {[%clk 0:01:03]} 40. Qe8+ {[%clk 0:01:47]} 1-0


[Site "https://www.chess.com"]

[Event "Titled Tuesday Blitz July 4 Late 2023"]
[White "The_Straightforward_Rook"]
[Black "Liu, Casper"]
[BlackFideId "1454153"]
[WhiteElo "2336"]
[BlackElo "2475"]
[Result "0-1"]
[Round "7"]
[TimeControl "180+2"]
[Date "2023.07.04"]
[WhiteClock "0:00:00"]
[BlackClock "0:01:22"]
[Board "110"]

1. d4 {[%clk 0:02:55]}  c5 {[%clk 0:02:58]} 2. d5 {[%clk 0:02:51]}  f5 {[%clk 0:02:59]} 3. c4 {[%clk 0:02:43]}  g6 {[%clk 0:02:59]} 4. h4 {[%clk 0:02:40]}  Bg7 {[%clk 0:02:59]} 5. h5 {[%clk 0:02:40]}  d6 {[%clk 0:02:58]} 6. Nc3 {[%clk 0:02:38]}  Nd7 {[%clk 0:02:57]} 7. e4 {[%clk 0:02:32]}  Ngf6 {[%clk 0:02:53]} 8. h6 {[%clk 0:02:31]}  Bf8 {[%clk 0:02:52]} 9. exf5 {[%clk 0:02:32]}  gxf5 {[%clk 0:02:53]} 10. Be2 {[%clk 0:02:31]}  Ne5 {[%clk 0:02:52]} 11. Bh5+ {[%clk 0:02:23]}  Nxh5 {[%clk 0:02:50]} 12. Qxh5+ {[%clk 0:02:23]}  Ng6 {[%clk 0:02:51]} 13. Nf3 {[%clk 0:02:20]}  e5 {[%clk 0:02:49]} 14. dxe6 {[%clk 0:02:16]}  Bxe6 {[%clk 0:02:48]} 15. O-O {[%clk 0:02:14]}  Be7 {[%clk 0:02:21]} 16. Re1 {[%clk 0:02:12]}  Qd7 {[%clk 0:02:20]} 17. Ng5 {[%clk 0:02:03]}  Bxc4 {[%clk 0:02:14]} 18. Nxh7 {[%clk 0:02:00]}  O-O-O {[%clk 0:02:03]} 19. Qxg6 {[%clk 0:01:45]}  Rdg8 {[%clk 0:02:03]} 20. Nf6 {[%clk 0:01:42]}  Rxg6 {[%clk 0:01:46]} 21. Nxd7 {[%clk 0:01:42]}  Kxd7 {[%clk 0:01:46]} 22. Bf4 {[%clk 0:01:04]}  Bg5 {[%clk 0:01:44]} 23. Bxg5 {[%clk 0:00:56]}  Rxg5 {[%clk 0:01:45]} 24. b3 {[%clk 0:00:41]}  Bf7 {[%clk 0:01:37]} 25. Rad1 {[%clk 0:00:33]}  Rxh6 {[%clk 0:01:36]} 26. Nd5 {[%clk 0:00:34]}  Rgh5 {[%clk 0:01:29]} 27. Re7+ {[%clk 0:00:07]}  Kd8 {[%clk 0:01:24]} 28. f3 {[%clk 0:00:03]}  Rh1+ {[%clk 0:01:21]} 29. Kf2 {[%clk 0:00:04]}  Rxd1 {[%clk 0:01:21]} 30. Rxf7 {[%clk 0:00:00]}  Rxd5 {[%clk 0:01:22]} 0-1


[Site "https://www.chess.com"]